bitfinex/quotes_SOLUSD_20250429
["timestamp","ask_amount","ask_price","bid_price","bid_amount"]
[1745896509079,0.063,147.43,147.38,11.35398772]
[1745896509280,0.063,147.43,147.42,11.35398772]
[1745896509787,0.063,147.43,147.41,11.35398772]
[1745896510562,11.41698772,147.43,147.4,13.64]
[1745896510971,0.063,147.43,147.4,24.99398772]
[1745896514002,0.063,147.43,147.41,11.35398772]
[1745896514691,0.063,147.43,147.4,13.64]
[1745896514894,0.063,147.43,147.4,24.99398772]
[1745896516911,0.063,147.43,147.42,11.35398772]
[1745896522806,0.063,147.43,147.4,24.99398772]
[1745896522985,11.41698772,147.43,147.4,13.64]
[1745896523303,0.063,147.43,147.4,24.99398772]
[1745896524294,0.063,147.43,147.41,11.35398772]
[1745896526111,0.063,147.43,147.42,11.35398772]
[1745896526789,0.063,147.43,147.42,36.10864268]
[1745896526990,0.063,147.43,147.42,47.4626304]
[1745896527699,0.063,147.43,147.42,36.10864268]
[1745896528318,0.063,147.43,147.42,47.4626304]
[1745896529282,0.063,147.43,147.42,52.99925853]
[1745896529887,0.063,147.45,147.44,44.64964886]
[1745896530112,0.063,147.45,147.44,57.35960444]
[1745896531812,0.063,147.45,147.44,63.46378241]
[1745896546733,0.063,147.45,147.44,77.10378241]
[1745896549418,0.063,147.48,147.45,18.64964886]
[1745896549747,0.063,147.48,147.47,25.89903155]
[1745896550142,0.063,147.49,147.47,54.89656231]
[1745896550321,0.063,147.49,147.48,56.2520959]
[1745896550637,0.063,147.51,147.49,18.64964886]
[1745896550810,0.063,147.51,147.5,40.89442063]
[1745896551424,0.063,147.51,147.5,46.99611554]
[1745896553248,0.063,147.52,147.5,46.99611554]
[1745896553417,0.063,147.52,147.51,25.89903155]
[1745896553624,0.063,147.52,147.51,29.96820463]
[1745896554720,0.063,147.52,147.51,31.32336249]
[1745896555147,0.063,147.53,147.51,31.32336249]
[1745896555437,0.063,147.55,147.53,18.64964886]
[1745896555746,0.063,147.55,147.53,112.22322792]
[1745896557549,0.063,147.55,147.53,118.32368206]
[1745896560446,0.063,147.55,147.53,129.64223783]
[1745896560643,0.063,147.55,147.54,41.2867604]
[1745896560839,0.063,147.57,147.55,18.64964886]
[1745896561023,0.063,147.57,147.56,56.26159211]
[1745896562330,0.063,147.57,147.56,51.04225021]
[1745896563644,0.063,147.57,147.56,62.36080598]
[1745896564330,0.063,147.57,147.56,49.6874185]
[1745896566055,0.063,147.57,147.56,13.62]
[1745896566243,1.63,147.57,147.56,13.62]
[1745896566437,1.63,147.57,147.56,24.93855577]
[1745896569659,1.63,147.57,147.56,13.62]
[1745896571375,1.63,147.57,147.56,24.93855577]
[1745896571548,0.063,147.57,147.56,24.93855577]
[1745896573059,0.063,147.57,147.56,61.00597427]
[1745896575649,0.063,147.57,147.56,49.6874185]
[1745896579266,0.063,147.57,147.56,43.58820463]
[1745896580474,0.063,147.57,147.56,24.93855577]
[1745896580674,0.063,147.57,147.56,13.62]
[1745896582047,0.063,147.57,147.56,24.93855577]
[1745896583476,0.063,147.57,147.56,13.62]
[1745896584174,11.38155577,147.57,147.56,13.62]
[1745896584653,0.063,147.57,147.53,29.96820463]
[1745896584857,11.38155577,147.57,147.53,29.96820463]
[1745896587181,0.063,147.57,147.53,29.96820463]
[1745896589181,0.063,147.57,147.55,11.31855577]
[1745896589682,0.063,147.57,147.56,11.31855577]
[1745896590279,0.063,147.57,147.55,11.31855577]
[1745896590580,11.38155577,147.57,147.53,11.31855577]
[1745896590781,11.31855577,147.55,147.52,13.62]
[1745896590961,11.31855577,147.53,147.52,13.62]
[1745896591365,11.31855577,147.53,147.49,222.84855577]
[1745896591673,11.31855577,147.5,147.49,0.03]
[1745896592058,17.41953193,147.52,147.49,0.03]
[1745896594559,11.31855577,147.5,147.49,0.03]
[1745896594874,12.97405577,147.5,147.49,0.03]
[1745896597088,19.07575068,147.5,147.49,0.03]
[1745896598787,7.75719491,147.5,147.49,0.03]
[1745896599689,82.66,147.51,147.49,0.03]
[1745896600167,88.76131648,147.51,147.49,0.03]
[1745896600468,100.07987225,147.51,147.49,0.03]
[1745896604097,82.66,147.51,147.49,0.03]
[1745896604302,7.72814482,147.54,147.5,11.31855577]
[1745896604483,20.1228,147.57,147.53,11.31855577]
[1745896604484,6.0993633,147.56,147.53,11.31855577]
[1745896604690,6.0993633,147.56,147.54,11.31855577]
[1745896604985,6.16191777,147.57,147.54,11.31855577]
[1745896606588,6.16191777,147.57,147.53,11.31855577]
[1745896606895,17.48047354,147.57,147.53,11.31855577]
[1745896607283,6.16191777,147.57,147.53,11.31855577]
[1745896607602,0.063,147.57,147.54,11.31855577]
[1745896608098,0.063,147.57,147.53,11.31855577]
[1745896608502,11.38155577,147.57,147.53,11.31855577]
[1745896608711,0.063,147.57,147.54,11.31855577]
[1745896610622,11.38155577,147.57,147.53,11.31855577]
[1745896612398,0.063,147.57,147.54,11.31855577]
[1745896614310,0.063,147.57,147.55,11.31855577]
[1745896615189,0.063,147.57,147.54,11.31855577]
[1745896618421,0.063,147.57,147.53,11.31855577]
[1745896618614,11.31855577,147.56,147.52,11.31855577]
[1745896619115,11.38155577,147.57,147.52,11.31855577]
[1745896619336,0.063,147.57,147.54,11.31855577]
[1745896621021,0.063,147.57,147.52,6.10086153]
[1745896621022,0.063,147.57,147.53,11.31855577]
[1745896621214,11.31855577,147.56,147.52,11.31855577]
[1745896621708,11.38155577,147.57,147.52,11.31855577]
[1745896622923,6.09921387,147.56,147.52,11.31855577]
[1745896623422,17.41776964,147.56,147.52,11.31855577]
[1745896623635,11.31855577,147.54,147.5,29.96820463]
[1745896623805,6.09921387,147.56,147.49,13.65]
[1745896623806,11.31855577,147.52,147.49,13.65]
[1745896624132,11.31855577,147.5,147.49,13.65]
[1745896624301,11.31855577,147.5,147.49,0.03]
[1745896625229,17.42025068,147.5,147.49,0.03]
[1745896630924,28.73880645,147.5,147.48,0.03]
[1745896631227,22.63711154,147.49,147.48,0.03]
[1745896631524,1.5313,147.48,147.43,0.03]
[1745896631738,11.31855577,147.44,147.43,0.03]
[1745896632833,17.42273374,147.44,147.43,0.03]
[1745896638237,11.31855577,147.44,147.43,0.03]
[1745896638537,11.31855577,147.46,147.43,0.03]
[1745896639339,82.9,147.5,147.44,11.31855577]
[1745896639542,82.9,147.5,147.46,11.31855577]
[1745896639720,94.21855577,147.5,147.46,11.31855577]
[1745896640045,100.32029267,147.5,147.46,11.31855577]
[1745896640210,100.32029267,147.5,147.45,11.31855577]
[1745896640847,11.31855577,147.48,147.44,11.31855577]
[1745896641141,11.31855577,147.46,147.43,13.65]
[1745896641655,11.31855577,147.47,147.43,24.96855577]
[1745896642640,17.42164824,147.47,147.43,24.96855577]
[1745896643444,82.9,147.49,147.45,11.31855577]
[1745896643629,101.03613632,147.49,147.45,18.13613632]
[1745896644121,18.13613632,147.48,147.44,36.78578518]
[1745896645138,14.63470475,147.48,147.44,36.78578518]
[1745896645350,18.13613632,147.48,147.44,36.78578518]
[1745896647244,107.13825858,147.49,147.44,36.78578518]
[1745896648624,18.13613632,147.48,147.44,36.78578518]
[1745896649749,107.13825858,147.49,147.44,36.78578518]
[1745896650842,18.13613632,147.48,147.44,36.78578518]
[1745896651229,24.23872983,147.48,147.44,36.78578518]
[1745896651437,18.13613632,147.47,147.44,18.64964886]
[1745896651948,24.23872983,147.48,147.44,36.78578518]
[1745896652154,18.13613632,147.48,147.44,36.78578518]
[1745896652451,24.23872693,147.48,147.44,36.78578518]
[1745896653752,6.10259061,147.48,147.44,36.78578518]
[1745896654057,6.10259061,147.48,147.45,18.13613632]
[1745896654243,24.23872693,147.48,147.44,36.78578518]
[1745896655150,18.13613632,147.47,147.44,18.64964886]
[1745896656265,24.23918125,147.47,147.44,18.64964886]
[1745896656484,24.23918125,147.47,147.43,13.65]
[1745896656485,18.13613632,147.46,147.43,13.65]
[1745896656662,18.13613632,147.45,147.43,13.65]
[1745896656962,18.13613632,147.44,147.43,13.65]
[1745896657528,18.13613632,147.45,147.43,13.65]
[1745896659840,24.23963633,147.46,147.43,13.65]
[1745896660046,18.13613632,147.46,147.43,13.65]
[1745896660244,6.10307478,147.47,147.43,13.65]
[1745896660446,18.13613632,147.46,147.43,13.65]
[1745896661071,89.00307478,147.47,147.43,13.65]
[1745896661359,18.13613632,147.46,147.43,13.65]
[1745896661565,101.03613632,147.47,147.43,31.78613632]
[1745896661762,82.9,147.47,147.44,18.13613632]
[1745896663564,94.23787575,147.47,147.43,31.09242859]
[1745896664063,82.9,147.47,147.44,11.33787575]
[1745896664967,94.23787575,147.47,147.43,31.09242859]
[1745896666565,82.9,147.47,147.44,11.33787575]
[1745896666866,11.33787575,147.48,147.44,11.33787575]
[1745896667067,82.9,147.53,147.47,11.33787575]
[1745896667239,94.23787575,147.53,147.49,11.33787575]
[1745896667656,82.9,147.53,147.5,11.33787575]
[1745896667864,0.063,147.54,147.5,11.33787575]
[1745896668355,0.063,147.54,147.51,11.33787575]
[1745896669044,6.16314925,147.54,147.51,11.33787575]
[1745896669270,11.33787575,147.52,147.48,43.60752461]
[1745896669759,17.43856347,147.53,147.49,11.33787575]
[1745896669963,6.163156,147.54,147.49,11.33787575]
[1745896670266,11.40087575,147.54,147.49,11.33787575]
[1745896670473,0.063,147.54,147.51,11.33787575]
[1745896672453,0.063,147.54,147.52,11.33787575]
[1745896675568,0.063,147.54,147.52,10.19067575]
[1745896678165,0.063,147.54,147.51,17.43915651]
[1745896679277,0.063,147.54,147.53,11.33787575]
[1745896682086,0.063,147.54,147.51,11.33787575]
[1745896682259,11.33787575,147.53,147.49,11.33787575]
[1745896684883,17.50127144,147.54,147.5,11.33787575]
[1745896685395,11.33787575,147.53,147.48,32.26964886]
[1745896685558,11.33787575,147.53,147.49,11.33787575]
[1745896685758,11.33787575,147.52,147.48,43.60752461]
[1745896686689,11.33787575,147.51,147.48,13.62]
[1745896686892,11.33787575,147.49,147.48,13.62]
[1745896687068,22.6757515,147.49,147.43,13.65]
[1745896687266,11.33787575,147.45,147.43,13.65]
[1745896687593,11.33787575,147.46,147.43,13.65]
[1745896688685,11.33787575,147.47,147.43,13.65]
[1745896689978,17.44082335,147.47,147.43,13.65]
[1745896690286,11.33787575,147.46,147.43,13.65]
[1745896690683,11.33787575,147.45,147.43,13.65]
[1745896691267,11.33787575,147.46,147.43,13.65]
[1745896703089,11.33787575,147.46,147.43,19.75449015]
[1745896703399,94.23787575,147.47,147.43,31.0923659]
[1745896704084,11.33787575,147.49,147.44,11.33787575]
[1745896704271,11.33787575,147.49,147.45,11.33787575]
[1745896704797,11.33787575,147.49,147.44,36.09148397]
[1745896705993,11.33787575,147.48,147.44,36.09148397]
[1745896706192,6.10220444,147.49,147.44,36.09148397]
[1745896706373,100.33970908,147.5,147.45,11.33787575]
[1745896706575,11.33787575,147.48,147.44,29.98752461]
[1745896706987,11.33787575,147.48,147.44,24.75381145]
[1745896707172,17.44017452,147.49,147.44,36.0916872]
[1745896707571,17.44017452,147.49,147.45,11.33787575]
[1745896708994,11.33787575,147.49,147.45,11.33787575]
[1745896709702,94.23787575,147.5,147.46,11.33787575]
[1745896709879,82.9,147.5,147.48,11.33787575]
[1745896710075,94.23787575,147.53,147.49,11.33787575]
[1745896710911,82.9,147.53,147.49,11.33787575]
[1745896713801,82.9,147.53,147.49,17.43997983]
[1745896714812,11.40087575,147.54,147.5,11.33787575]
[1745896715226,0.063,147.54,147.51,11.33787575]
[1745896715511,11.40087575,147.54,147.5,11.33787575]
[1745896715682,17.50092254,147.54,147.5,11.33787575]
[1745896716539,11.40087575,147.54,147.5,11.33787575]
[1745896716685,11.40087575,147.54,147.5,17.4395293]
[1745896717084,0.063,147.54,147.51,11.33787575]
[1745896717693,0.063,147.54,147.53,11.33787575]
[1745896718504,0.063,147.54,147.53,36.08797875]
[1745896718810,0.063,147.54,147.53,49.68797875]
[1745896720501,0.063,147.54,147.53,43.58752461]
[1745896721610,0.063,147.54,147.53,49.68797875]
[1745896725521,0.063,147.54,147.53,43.58752461]
[1745896726119,0.063,147.54,147.53,32.24964886]
[1745896726319,0.063,147.54,147.53,43.58752461]
[1745896727613,0.063,147.54,147.53,49.68797875]
[1745896728016,0.063,147.54,147.53,43.58752461]
[1745896728721,0.063,147.54,147.53,13.6]
[1745896730022,11.40087575,147.54,147.53,13.6]
[1745896730212,11.40087575,147.54,147.49,31.03997767]
[1745896730408,11.33787575,147.53,147.49,31.03997767]
[1745896731326,11.33787575,147.53,147.49,24.93787575]
[1745896731828,17.43837693,147.53,147.49,13.6]
[1745896732122,17.43837693,147.53,147.49,24.93787575]
[1745896732793,11.40087575,147.54,147.5,11.33787575]
[1745896733217,0.063,147.54,147.51,11.33787575]
[1745896733626,17.50092093,147.54,147.5,11.33787575]
[1745896733930,11.33787575,147.53,147.49,24.93787575]
[1745896734529,17.43852675,147.53,147.49,24.93787575]
[1745896735833,11.33787575,147.53,147.49,31.03988045]
[1745896736121,17.50106111,147.54,147.5,11.33787575]
[1745896736331,6.16318536,147.54,147.5,11.33787575]
[1745896736509,17.50106111,147.54,147.5,11.33787575]
[1745896737941,11.33787575,147.53,147.49,24.93787575]
[1745896738231,11.33787575,147.53,147.49,31.03996429]
[1745896739232,17.50106111,147.54,147.5,11.33787575]
[1745896740527,17.50106111,147.54,147.49,13.6]
[1745896740528,11.33787575,147.53,147.49,24.93787575]
[1745896740735,11.33787575,147.53,147.49,31.03995258]
[1745896741245,11.33787575,147.53,147.49,24.93787575]
[1745896742009,17.43834769,147.53,147.49,24.93787575]
[1745896744832,11.33787575,147.53,147.49,24.93787575]
[1745896745235,17.43843518,147.53,147.49,24.93787575]
[1745896745843,6.16304066,147.54,147.49,31.03995563]
[1745896746014,0.063,147.54,147.5,11.33787575]
[1745896746213,11.40087575,147.54,147.5,11.33787575]
[1745896746728,0.063,147.54,147.5,11.33787575]
[1745896746935,11.40087575,147.54,147.5,11.33787575]
[1745896748238,0.063,147.54,147.5,11.33787575]
[1745896749644,0.063,147.54,147.5,17.43954404]
[1745896749843,0.063,147.54,147.52,11.33787575]
[1745896750319,0.063,147.54,147.51,29.98752461]
[1745896752741,0.063,147.54,147.52,11.33787575]
[1745896756123,0.063,147.54,147.51,36.08879243]
[1745896759427,0.063,147.54,147.53,11.33787575]
[1745896759622,0.063,147.54,147.53,29.98752461]
[1745896761152,0.063,147.54,147.53,36.08797875]
[1745896761843,0.063,147.57,147.54,18.64964886]
[1745896762044,0.063,147.57,147.56,41.32540036]
[1745896762951,0.063,147.57,147.56,47.42461423]
[1745896772939,0.063,147.57,147.56,48.7793818]
[1745896783580,0.063,147.57,147.56,37.44150605]
[1745896786850,0.063,147.57,147.52,31.34324163]
[1745896787158,0.063,147.57,147.54,18.64964886]
[1745896788346,11.40087575,147.57,147.54,18.64964886]
[1745896789286,11.33787575,147.56,147.53,13.58]
[1745896789451,11.33787575,147.54,147.53,13.58]
[1745896790350,12.99117575,147.54,147.53,13.58]
[1745896790677,12.99117575,147.54,147.49,13.58]
[1745896790864,11.33787575,147.51,147.49,13.58]
[1745896791061,11.33787575,147.5,147.49,13.58]
[1745896791265,84.5533,147.54,147.49,13.58]
[1745896791482,6.10045414,147.53,147.49,13.58]
[1745896791664,11.33787575,147.51,147.49,13.58]
[1745896791984,11.33787575,147.5,147.49,13.58]
[1745896792562,11.33787575,147.5,147.46,18.64964886]
[1745896792563,11.33787575,147.5,147.45,13.61]
[1745896792876,11.33787575,147.47,147.45,13.61]
[1745896793268,11.33787575,147.48,147.45,13.61]
[1745896793462,11.33787575,147.47,147.45,13.61]
[1745896793986,11.33787575,147.48,147.45,13.61]
[1745896796178,12.99117575,147.49,147.45,24.94787575]
[1745896796863,1.6533,147.49,147.45,31.05155161]
[1745896797275,1.6533,147.49,147.46,11.33787575]
[1745896798277,12.99117575,147.49,147.45,31.05155161]
[1745896800089,82.9,147.51,147.47,11.33787575]
[1745896800272,11.33787575,147.52,147.48,11.33787575]
[1745896800469,1.5044,147.53,147.5,11.33787575]
[1745896801681,12.84227575,147.53,147.49,11.33787575]
[1745896801987,11.33787575,147.5,147.46,29.98752461]
[1745896802288,17.43964759,147.5,147.46,18.64964886]
[1745896802464,11.33787575,147.5,147.46,29.98752461]
[1745896802784,11.33787575,147.5,147.46,36.09083781]
[1745896808477,94.23787575,147.52,147.48,11.33787575]
[1745896808883,82.9,147.52,147.49,11.33787575]
[1745896809183,1.5044,147.53,147.49,17.43977472]
[1745896810589,11.33787575,147.52,147.49,18.64964886]
[1745896810882,11.33787575,147.5,147.46,18.64964886]
[1745896811087,11.33787575,147.49,147.46,18.64964886]
[1745896811965,6.10141733,147.51,147.46,18.64964886]
[1745896812164,11.33787575,147.5,147.46,36.0908297]
[1745896812363,11.33787575,147.49,147.46,18.64964886]
[1745896812594,11.33787575,147.48,147.45,13.61]
[1745896812775,11.33787575,147.46,147.45,13.61]
[1745896813364,11.33787575,147.46,147.45,0.03]
[1745896813565,17.44122581,147.46,147.45,0.03]
[1745896814290,11.33787575,147.46,147.45,0.03]
[1745896814891,11.33787575,147.47,147.45,0.03]
[1745896815196,95.88887575,147.48,147.45,0.03]
[1745896817495,84.551,147.48,147.45,0.03]
[1745896817697,95.88887575,147.48,147.45,0.03]
[1745896821909,101.99141675,147.48,147.45,0.03]
[1745896822193,95.88887575,147.48,147.45,0.03]
[1745896822893,84.551,147.48,147.45,0.03]
[1745896823592,84.551,147.48,147.45,11.36787575]
[1745896824201,84.551,147.48,147.45,0.03]
[1745896824490,82.9,147.48,147.45,11.36787575]
[1745896825705,82.9,147.48,147.45,0.03]
[1745896827490,94.23787575,147.48,147.45,0.03]
[1745896828210,11.33787575,147.48,147.45,0.03]
[1745896830583,11.33787575,147.49,147.45,11.36787575]
[1745896831822,1.6556,147.51,147.48,11.33787575]
[1745896832122,1.6556,147.51,147.49,11.33787575]
[1745896832288,1.6556,147.51,147.48,11.33787575]
[1745896835007,6.10070178,147.53,147.49,11.33787575]
[1745896835208,17.43857753,147.53,147.49,11.33787575]
[1745896835812,90.56831017,147.54,147.5,11.33787575]
[1745896836017,101.90618592,147.54,147.5,11.33787575]
[1745896836418,11.33787575,147.53,147.49,11.33787575]
[1745896838099,11.33787575,147.53,147.49,17.43989374]
[1745896838798,1.5682,147.54,147.5,29.98752461]
[1745896838996,94.23787575,147.56,147.52,11.33787575]
[1745896839307,11.33787575,147.55,147.51,11.33787575]
[1745896841020,88.99928658,147.56,147.51,17.43913709]
[1745896841219,11.33787575,147.55,147.51,17.43913709]
[1745896842220,11.33787575,147.54,147.5,29.98752461]
[1745896842390,11.33787575,147.53,147.49,11.33787575]
[1745896842597,11.33787575,147.52,147.48,24.91787575]
[1745896845918,17.43883066,147.52,147.48,24.91787575]
[1745896846298,11.33787575,147.52,147.48,31.02039428]
[1745896846498,17.43842018,147.53,147.48,31.02039428]
[1745896846797,11.33787575,147.53,147.49,11.33787575]
[1745896847499,94.23787575,147.55,147.51,11.33787575]
[1745896848537,82.9,147.55,147.52,11.33787575]
[1745896849350,11.33787575,147.56,147.52,11.33787575]
[1745896849508,82.963,147.57,147.54,11.33787575]
[1745896850429,0.063,147.57,147.55,11.33787575]
[1745896851126,0.063,147.57,147.54,11.33787575]
[1745896855637,0.063,147.57,147.55,11.33787575]
[1745896855937,0.063,147.57,147.56,29.98752461]
[1745896856320,0.063,147.57,147.56,42.68046724]
[1745896856634,0.063,147.57,147.56,31.34259149]
[1745896857942,0.063,147.57,147.56,37.44180536]
[1745896862520,0.063,147.57,147.56,36.08673848]
[1745896863641,0.063,147.57,147.56,48.77968814]
[1745896863827,0.063,147.57,147.56,74.77968814]
[1745896864031,0.063,147.58,147.57,18.64964886]
[1745896864245,0.063,147.59,147.57,110.88752461]
[1745896864430,0.063,147.59,147.58,33.5842709]
[1745896864633,0.063,147.59,147.58,44.92214665]
[1745896865551,0.063,147.59,147.58,51.02053396]
[1745896874559,0.063,147.59,147.58,39.68265821]
[1745896874750,0.063,147.59,147.58,51.02053396]
[1745896874941,0.063,147.59,147.58,43.56752461]
[1745896877256,0.063,147.59,147.58,32.22964886]
[1745896877560,0.063,147.59,147.58,43.56752461]
[1745896880968,0.063,147.59,147.58,49.66591192]
[1745896881141,0.063,147.59,147.58,13.58]
[1745896881342,0.063,147.59,147.58,24.91787575]
[1745896881550,0.063,147.59,147.58,43.56752461]
[1745896881864,0.063,147.59,147.58,49.66591192]
[1745896887151,0.063,147.59,147.58,51.02052319]
[1745896889794,0.063,147.6,147.59,18.64964886]
[1745896889952,0.063,147.6,147.59,29.98752461]
[1745896891383,0.063,147.6,147.59,36.08549872]
[1745896895283,0.063,147.72,147.66,18.64964886]
[1745896895458,0.063,147.72,147.71,29.98752461]
[1745896895877,0.063,147.72,147.7,11.33787575]
[1745896897279,0.063,147.72,147.69,17.43160311]
[1745896902959,0.063,147.72,147.7,11.33787575]
[1745896903463,0.063,147.72,147.71,11.33787575]
[1745896904485,0.063,147.72,147.71,17.43089585]
[1745896906059,0.063,147.72,147.71,36.08054471]
[1745896909375,0.063,147.72,147.71,18.64964886]
[1745896909591,0.063,147.72,147.69,18.64964886]
[1745896909879,0.063,147.72,147.69,29.98752461]
[1745896910069,0.063,147.72,147.7,11.33787575]
[1745896910477,0.063,147.72,147.7,17.43117327]
[1745896915590,0.063,147.72,147.7,24.89787575]
[1745896916997,0.063,147.72,147.7,13.56]
[1745896918493,11.33787575,147.71,147.7,13.56]
[1745896919207,13.02327575,147.72,147.7,13.56]
[1745896920407,1.6854,147.72,147.7,13.56]
[1745896921089,0.063,147.72,147.71,29.98752461]
[1745896922287,0.063,147.72,147.71,36.08054471]
[1745896926287,0.063,147.72,147.71,37.43413568]
[1745896929225,0.063,147.72,147.71,36.08054471]
[1745896930919,0.063,147.72,147.71,37.43423226]
[1745896937992,1e-08,147.72,147.71,37.43423226]
[1745896938423,0.03,147.78,147.74,44.64964886]
[1745896938626,0.03,147.78,147.77,11.33787575]
[1745896940295,0.03,147.78,147.77,17.42842186]
[1745896940607,0.03,147.78,147.77,36.07807072]
[1745896946301,0.03,147.78,147.77,48.76889793]
[1745896950723,0.03,147.78,147.77,37.43102218]
[1745896951127,0.03,147.78,147.77,36.07807072]
[1745896953531,12.90977575,147.78,147.75,13.54]
[1745896953715,11.33787575,147.76,147.75,13.54]
[1745896954124,1.5719,147.78,147.75,32.18964886]
[1745896954518,11.33787575,147.77,147.75,32.18964886]
[1745896958428,11.33787575,147.76,147.75,32.18964886]
[1745896959546,11.33787575,147.77,147.75,32.18964886]
[1745896959917,11.33787575,147.76,147.75,32.18964886]
[1745896962215,11.33787575,147.76,147.75,13.54]
[1745896962438,11.33787575,147.76,147.72,18.64964886]
[1745896962750,11.33787575,147.74,147.72,18.64964886]
[1745896963135,11.33787575,147.77,147.73,11.33787575]
[1745896963633,11.33787575,147.77,147.74,18.64964886]
[1745896967050,11.33787575,147.77,147.74,24.74141428]
[1745896967851,12.90977575,147.78,147.74,36.07929003]
[1745896968230,1.5719,147.78,147.74,36.07929003]
[1745896968431,0.03,147.78,147.76,11.33787575]
[1745896968832,0.03,147.78,147.76,17.42857246]
[1745896971576,0.03,147.78,147.76,18.64964886]
[1745896971737,0.03,147.78,147.74,36.07916165]
[1745896971964,0.03,147.78,147.75,18.64964886]
[1745896972698,0.03,147.78,147.75,29.98752461]
[1745896975662,0.03,147.78,147.75,18.64964886]
[1745896975995,11.33787575,147.77,147.74,18.64964886]
[1745896978176,11.33787575,147.77,147.74,29.98752461]
[1745896981855,11.33787575,147.77,147.73,24.87787575]
[1745896982063,11.33787575,147.77,147.73,13.54]
[1745896982064,11.33787575,147.74,147.73,13.54]
[1745896982767,11.33787575,147.75,147.73,13.54]
[1745896986848,11.33787575,147.74,147.73,13.54]
[1745896987865,17.42965861,147.74,147.69,13.54]
[1745896988172,11.33787575,147.72,147.69,13.54]
[1745896991355,17.43054127,147.72,147.69,13.54]
[1745896991560,11.33787575,147.72,147.69,13.54]
[1745896992853,11.33787575,147.72,147.68,17.49503675]
[1745896994363,11.33787575,147.72,147.68,11.40087575]
[1745896994978,11.33787575,147.72,147.68,17.49512761]
[1745896995174,82.9,147.75,147.69,18.64964886]
[1745896995175,6.09185984,147.74,147.69,18.64964886]
[1745896995484,94.23787575,147.75,147.71,11.33787575]
[1745896995663,94.23787575,147.75,147.7,17.4311083]
[1745896997658,19.05496681,147.76,147.71,17.43081954]
[1745896997964,12.96387575,147.76,147.72,11.33787575]
[1745896998356,11.33787575,147.75,147.71,17.43081954]
[1745896999664,7.71702114,147.76,147.71,17.43081954]
[1745896999867,11.33787575,147.75,147.71,17.43081954]
[1745897000663,11.33787575,147.75,147.71,6.09294379]
[1745897000875,11.33787575,147.75,147.71,17.43081954]
[1745897002586,7.71709925,147.76,147.71,17.43081954]
[1745897002768,19.054975,147.76,147.71,17.43081954]
[1745897002971,19.054975,147.76,147.71,30.97081954]
[1745897004983,7.71709925,147.76,147.71,30.97081954]
[1745897005282,19.054975,147.76,147.71,30.97081954]
[1745897007277,11.33787575,147.75,147.71,30.97081954]
[1745897007866,94.23787575,147.77,147.73,11.33787575]
[1745897009266,94.23787575,147.77,147.73,17.4299121]
[1745897010591,11.33787575,147.76,147.72,29.98752461]
[1745897011566,11.33787575,147.76,147.72,36.08002986]
[1745897014575,100.32857208,147.77,147.72,36.08002986]
[1745897015368,82.9,147.77,147.73,11.33787575]
[1745897015677,82.9,147.77,147.74,11.33787575]
[1745897016490,94.23787575,147.77,147.73,11.33787575]
[1745897016810,100.32848903,147.77,147.73,11.33787575]
[1745897021503,82.9,147.77,147.74,11.33787575]
[1745897025485,90.1268663,147.77,147.73,20.7668663]
[1745897025797,90.1268663,147.77,147.73,26.85900057]
[1745897026005,82.9,147.77,147.74,7.2268663]
[1745897027497,82.9,147.77,147.74,13.31849637]
[1745897029701,82.9,147.77,147.74,6.09163007]
[1745897030602,7.2568663,147.78,147.74,6.09163007]
[1745897032808,13.34701128,147.78,147.73,26.85892156]
[1745897037704,6.12014498,147.78,147.73,26.85892156]
[1745897038004,13.34701128,147.78,147.73,26.85892156]
[1745897038415,13.34701128,147.78,147.73,20.7668663]
[1745897041096,7.2568663,147.78,147.74,7.2268663]
[1745897041301,6.12013761,147.78,147.74,7.2268663]
[1745897041692,13.34700391,147.78,147.74,7.2268663]
[1745897046608,13.34700391,147.78,147.73,26.85883408]
[1745897048399,6.12013761,147.78,147.73,26.85883408]
[1745897048914,6.12013761,147.78,147.74,13.31849954]
[1745897048915,0.03,147.78,147.74,13.31849954]
[1745897049507,0.03,147.78,147.74,7.2268663]